{"text_format":"1","workbook":"xlsx","n_sheets":1,"sheets":["1"],"not_rendered":{"charts":0,"images":0,"macros":1,"external_links":0,"defined_names":0,"comments":0,"pivot_tables":0},"unopened":[],"bounds":{"document_bytes":16777216,"sheet_cells":100000,"rows_first":2000,"rows_last":500,"rows_between":2000,"halvings":0,"cell_chars":16384,"cell_head_chars":4096},"cells_cut":0,"cells_raw":0,"read":"whole","date_system":"1900"}

{"sheet":"1","index":0,"n_rows":68,"n_cols":83,"rows_kept":68,"cut":false,"hidden":false,"merged":[[37,37,37,40],[37,41,37,44],[38,37,38,40],[38,41,38,44],[39,37,39,40],[39,41,39,44],[34,37,34,40],[34,41,34,44],[35,37,35,40],[35,41,35,44],[36,37,36,40],[36,41,36,44],[31,37,31,40],[31,41,31,44],[32,37,32,40],[32,41,32,44],[33,37,33,40],[33,41,33,44],[28,37,28,40],[28,41,28,44],[29,37,29,40],[29,41,29,44],[30,37,30,40],[30,41,30,44],[25,37,25,40],[25,41,25,44],[26,37,26,40],[26,41,26,44],[27,37,27,40],[27,41,27,44],[22,37,22,40],[22,41,22,44],[23,37,23,40],[23,41,23,44],[24,37,24,40],[24,41,24,44],[19,37,19,40],[19,41,19,44],[20,37,20,40],[20,41,20,44],[21,37,21,40],[21,41,21,44],[16,37,16,40],[16,41,16,44],[17,37,17,40],[17,41,17,44],[18,37,18,40],[18,41,18,44],[13,37,13,40],[13,41,13,44],[14,37,14,40],[14,41,14,44],[15,37,15,40],[15,41,15,44],[10,37,10,40],[10,41,10,44],[11,37,11,40],[11,41,11,44],[12,37,12,40],[12,41,12,44],[7,37,7,40],[7,41,7,44],[8,37,8,40],[8,41,8,44],[9,37,9,40],[9,41,9,44],[4,37,4,40],[4,41,4,44],[5,37,5,40],[5,41,5,44],[6,37,6,40],[6,41,6,44],[1,37,1,40],[1,41,1,44],[2,37,2,40],[2,41,2,44],[3,37,3,40],[3,41,3,44]]}
[null,null,null,null,null,null,null,null,null,null,null,null,null,null,null,null,null,null,null,null,null,null,null,null,null,null,null,null,null,null,null,null,null,null,null,null,null,null,null,null,null,"Версия:",null,null,null,"Спотов:"]
[null,null,null,null,null,null,null,null,null,null,null,null,null,null,null,null,null,null,null,null,null,null,null,null,null,null,null,null,null,null,null,null,null,null,null,null,5,null,null,null,null,"ТДН 02.19 Friso",null,null,null,0]
[null,null,"Март",null,null,null,null,null,null,null,null,null,null,null,null,null,null,null,null,null,null,null,null,null,null,null,null,null,null,null,null,null,null,null,null,null,5,null,null,null,null,"ТДН 02.19 Фрутоняня",null,null,null,0,null,null,null,null,null,null,"Апрель"]
[null,null,1,2,3,4,5,6,7,8,9,10,11,12,13,14,15,16,17,18,19,20,21,22,23,24,25,26,27,28,29,30,31,null,null,null,5,null,null,null,null,"ТДН 02.19 Huggies подгузники",null,null,null,0,null,null,null,null,null,null,1,2,3,4,5,6,7,8,9,10,11,12,13,14,15,16,17,18,19,20,21,22,23,24,25,26,27,28,29,30]
[null,null,null,null,null,null,null,null,null,null,null,null,null,null,null,null,null,null,null,null,null,null,null,null,null,null,null,null,null,null,null,null,null,null,null,null,5,null,null,null,null,"ТДН 02.19 Libero",null,null,null,0]
["09:05","перед",10,null,10,null,null,null,null,null,null,null,null,null,null,null,null,null,null,null,null,null,null,null,null,null,null,null,null,null,null,null,null,null,null,null,5,null,null,null,null,"1_ТДН 02.19 Pampers pants",null,null,null,0,null,null,null,null,"Версия:","Версия:","Furreal",null,"Enchantimals"]
["09:20","перед",null,10,null,null,null,null,null,null,null,null,null,null,null,null,null,null,null,null,null,null,null,null,null,null,null,null,null,null,null,null,null,null,null,null,5,null,null,null,null,"ТДН 02.19 Pampers premium",null,null,null,0,null,null,null,null,"07:20","перед",null,"Furreal"]
["09:35","перед",null,10,10,null,null,null,null,null,null,null,null,null,null,null,null,null,null,null,null,null,null,null,null,null,null,null,null,null,null,null,null,null,null,null,5,null,null,null,null,"ТДН 02.19 PhilipsAvent",null,null,null,0,null,null,null,null,"07:35","перед",null,"1_Sylvanian Families","1_Sylvanian Families"]
["09:50","перед",10,null,null,null,null,null,null,null,null,null,null,null,null,null,null,null,null,null,null,null,null,null,null,null,null,null,null,null,null,null,null,null,null,null,5,null,null,null,null,"ТДН 02.19 Thomas&Friends",null,null,null,0,null,null,null,null,"07:50","перед","1_Sylvanian Families"]
["10:05","перед",10,10,10,null,null,null,null,null,null,null,null,null,null,null,null,null,null,null,null,null,null,null,null,null,null,null,null,null,null,null,null,null,null,null,5,null,null,null,null,"ТДН 02.19 Tiny Love",null,null,null,0,null,null,null,null,"08:05","перед","Enchantimals","Enchantimals","Enchantimals"]
["10:35","перед",10,10,10,null,null,null,null,null,null,null,null,null,null,null,null,null,null,null,null,null,null,null,null,null,null,null,null,null,null,null,null,null,null,null,5,null,null,null,null,"ТДН 02.19 Huggies трусики",null,null,null,0,null,null,null,null,"08:20","перед","Furreal","Furreal","Furreal"]
["10:50","перед",null,10,10,null,null,null,null,null,null,null,null,null,null,null,null,null,null,null,null,null,null,null,null,null,null,null,null,null,null,null,null,null,null,null,5,null,null,null,null,"ТДН 02.19 Gerber",null,null,null,0,null,null,null,null,"08:35","перед",null,"1_Sylvanian Families","1_Sylvanian Families"]
["11:05","перед",null,null,null,null,null,null,null,null,null,null,null,null,null,null,null,null,null,null,null,null,null,null,null,null,null,null,null,null,null,null,null,null,null,null,5,null,null,null,null,"ТДН 02.19 Малютка",null,null,null,0,null,null,null,null,"08:50","перед"]
["11:20","перед",null,10,null,null,null,null,null,null,null,null,null,null,null,null,null,null,null,null,null,null,null,null,null,null,null,null,null,null,null,null,null,null,null,null,5,null,null,null,null,"ТДН 02.19 Nestle",null,null,null,0,null,null,null,null,"09:05","перед",null,"1_Sylvanian Families"]
["11:50","перед",null,null,null,null,10,10,null,null,null,null,null,null,null,null,null,null,null,null,null,null,null,null,null,null,null,null,null,null,null,null,null,null,null,null,5,null,null,null,null,"ТДН 02.19 Nestogen",null,null,null,0,null,null,null,null,"09:20","перед",null,null,null,null,"1_Sylvanian Families","1_Sylvanian Families"]
["12:05","перед",null,10,10,10,10,10,10,10,null,null,null,null,null,null,null,null,null,null,null,null,null,null,null,null,null,null,null,null,null,null,null,null,null,null,5,null,null,null,null,"ТДН 02.19 Nutrilon",null,null,null,0,null,null,null,null,"09:35","перед",null,"Enchantimals","Enchantimals","Enchantimals","Enchantimals","Enchantimals","Enchantimals","Enchantimals"]
["12:20","после",10,null,null,null,null,null,null,null,null,null,null,null,null,null,null,null,null,null,null,null,null,null,null,null,null,null,null,null,null,null,null,null,null,null,10,null,null,null,null,"Aquabeads",null,null,null,19,null,null,null,null,"10:05","перед","Enchantimals"]
["12:20","перед",10,10,null,10,10,10,10,10,null,null,null,null,null,null,null,null,null,null,null,null,null,null,null,null,null,null,null,null,null,null,null,null,null,null,10,null,null,null,null,"Barbie",null,null,null,19,null,null,null,null,"10:20","перед","Furreal","1_Sylvanian Families",null,"1_Sylvanian Families","1_Sylvanian Families","1_Sylvanian Families","1_Sylvanian Families","1_Sylvanian Families"]
["12:35","перед",10,null,10,null,null,null,null,null,null,null,null,null,null,null,null,null,null,null,null,null,null,null,null,null,null,null,null,null,null,null,null,null,null,null,10,null,null,null,null,"Demi Star Пони",null,null,null,10,null,null,null,null,"10:35","перед","ТДН 02.19 PhilipsAvent",null,"ТДН 02.19 PhilipsAvent"]
["12:50","перед",null,10,null,null,null,10,10,null,null,null,null,null,null,null,null,null,null,null,null,null,null,null,null,null,null,null,null,null,null,null,null,null,null,null,10,null,null,null,null,"1_Demi Star Пупс",null,null,null,9,null,null,null,null,"10:50","перед",null,"ТДН 02.19 PhilipsAvent",null,null,null,"Enchantimals","Enchantimals"]
["13:05","перед",10,null,null,10,10,10,10,10,null,null,null,null,null,null,null,null,null,null,null,null,null,null,null,null,null,null,null,null,null,null,null,null,null,null,10,null,null,null,null,"1_Disney",null,null,null,19,null,null,null,null,"11:05","перед","1_Winx",null,null,"Furreal","Furreal","Furreal","Furreal","Furreal"]
["13:20","после",null,null,10,null,null,null,null,null,null,null,null,null,null,null,null,null,null,null,null,null,null,null,null,null,null,null,null,null,null,null,null,null,null,null,10,null,null,null,null,"Enchantimals",null,null,null,19,null,null,null,null,"11:20","перед",null,null,"1_Winx"]
["13:20","перед",null,10,10,null,null,null,10,10,null,null,null,null,null,null,null,null,null,null,null,null,null,null,null,null,null,null,null,null,null,null,null,null,null,null,10,null,null,null,null,"Furreal",null,null,null,19,null,null,null,null,"11:35","перед",null,"1_Winx","Furreal",null,null,null,"Furreal","Furreal"]
["13:35","перед",10,10,10,null,null,null,null,null,null,null,null,null,null,null,null,null,null,null,null,null,null,null,null,null,null,null,null,null,null,null,null,null,null,null,10,null,null,null,null,"Pikmi Pops",null,null,null,9,null,null,null,null,"11:50","перед","Barbie","Barbie","ТДН 02.19 PhilipsAvent"]
["13:50","перед",10,10,null,10,10,10,10,10,null,null,null,null,null,null,null,null,null,null,null,null,null,null,null,null,null,null,null,null,null,null,null,null,null,null,10,null,null,null,null,"1_Sylvanian Families",null,null,null,19,null,null,null,null,"12:05","перед","ТДН 02.19 PhilipsAvent","ТДН 02.19 PhilipsAvent",null,"1_Sylvanian Families","1_Sylvanian Families","1_Sylvanian Families","1_Sylvanian Families","1_Sylvanian Families"]
["14:05","перед",null,null,null,10,10,10,10,10,null,null,null,null,null,null,null,null,null,null,null,null,null,null,null,null,null,null,null,null,null,null,null,null,null,null,10,null,null,null,null,"1_Winx",null,null,null,19,null,null,null,null,"12:20","перед",null,null,null,"Furreal","Furreal","Enchantimals","Enchantimals","Enchantimals"]
["14:20","перед",null,10,null,null,null,null,null,null,null,null,null,null,null,null,null,null,null,null,null,null,null,null,null,null,null,null,null,null,null,null,null,null,null,null,10,null,null,null,null,"1_Wrapples",null,null,null,10,null,null,null,null,"12:35","перед",null,"1_Disney"]
["14:35","перед",null,null,10,10,10,10,10,10,null,null,null,null,null,null,null,null,null,null,null,null,null,null,null,null,null,null,null,null,null,null,null,null,null,null,10,null,null,null,null,"ДМ ТДН 03.19",null,null,null,null,null,null,null,null,"12:50","перед",null,null,"1_Disney","ТДН 02.19 PhilipsAvent","ТДН 02.19 PhilipsAvent","ТДН 02.19 PhilipsAvent","ТДН 02.19 PhilipsAvent","ТДН 02.19 PhilipsAvent"]
["14:50","после",10,null,null,null,null,null,null,null,null,null,null,null,null,null,null,null,null,null,null,null,null,null,null,null,null,null,null,null,null,null,null,null,null,null,10,null,null,null,null,"ДМ НК Весна 03.19",null,null,null,null,null,null,null,null,"13:05","перед","1_Disney"]
["14:50","перед",10,null,null,null,null,null,10,10,null,null,null,null,null,null,null,null,null,null,null,null,null,null,null,null,null,null,null,null,null,null,null,null,null,null,10,null,null,null,null,"Hot Wheels",null,null,null,0,null,null,null,null,"13:20","перед","ТДН 02.19 PhilipsAvent",null,null,null,null,null,"ТДН 02.19 PhilipsAvent","ТДН 02.19 PhilipsAvent"]
["15:05","перед",null,null,null,10,10,10,null,null,null,null,null,null,null,null,null,null,null,null,null,null,null,null,null,null,null,null,null,null,null,null,null,null,null,null,10,null,null,null,null,"Mecard",null,null,null,0,null,null,null,null,"13:35","перед",null,null,null,"Furreal","Furreal","Furreal"]
["15:20","перед",null,null,null,null,null,null,null,null,null,null,null,null,null,null,null,null,null,null,null,null,null,null,null,null,null,null,null,null,null,null,null,null,null,null,10,null,null,null,null,"Monopoly",null,null,null,0,null,null,null,null,"13:50","перед"]
["15:35","перед",10,null,null,null,null,10,10,null,null,null,null,null,null,null,null,null,null,null,null,null,null,null,null,null,null,null,null,null,null,null,null,null,null,null,10,null,null,null,null,"Nerf",null,null,null,0,null,null,null,null,"14:20","перед","1_Winx",null,null,null,null,"Enchantimals","Enchantimals"]
["15:50","перед",null,null,null,null,null,null,null,null,null,null,null,null,null,null,null,null,null,null,null,null,null,null,null,null,null,null,null,null,null,null,null,null,null,null,10,null,null,null,null,"Paw Patrol",null,null,null,0,null,null,null,null,"14:35","перед"]
["16:05","перед",null,null,null,10,10,10,10,10,null,null,null,null,null,null,null,null,null,null,null,null,null,null,null,null,null,null,null,null,null,null,null,null,null,null,10,null,null,null,null,"Sluban",null,null,null,0,null,null,null,null,"14:50","перед",null,null,null,"ТДН 02.19 PhilipsAvent","ТДН 02.19 PhilipsAvent","ТДН 02.19 PhilipsAvent","ТДН 02.19 PhilipsAvent","ТДН 02.19 PhilipsAvent"]
["16:20","перед",10,null,null,null,null,null,null,null,null,null,null,null,null,null,null,null,null,null,null,null,null,null,null,null,null,null,null,null,null,null,null,null,null,null,10,null,null,null,null,"Transformers",null,null,null,0,null,null,null,null,"15:05","перед","Demi Star Пони"]
["16:35","перед",null,null,null,null,null,null,null,null,null,null,null,null,null,null,null,null,null,null,null,null,null,null,null,null,null,null,null,null,null,null,null,null,null,null,10,null,null,null,null,"Attivio конструктор",null,null,null,0,null,null,null,null,"15:20","перед"]
["16:50","перед",null,null,null,null,null,null,null,null,null,null,null,null,null,null,null,null,null,null,null,null,null,null,null,null,null,null,null,null,null,null,null,null,null,null,10,null,null,null,null,"Attivio набор",null,null,null,0,null,null,null,null,"15:35","перед"]
["17:05","перед",null,null,null,null,10,10,10,10,null,null,null,null,null,null,null,null,null,null,null,null,null,null,null,null,null,null,null,null,null,null,null,null,null,null,10,null,null,null,null,"Mobicaro квадрокоптер",null,null,null,0,null,null,null,null,"16:20","перед",null,null,null,null,"Pikmi Pops","Pikmi Pops","Pikmi Pops","Pikmi Pops"]
["17:20","перед",null,null,null,null,null,null,null,null,null,null,null,null,null,null,null,null,null,null,null,null,null,null,null,null,null,null,null,null,null,null,null,null,null,null,10,null,null,null,null,"Mobicaro машина",null,null,null,0,null,null,null,null,"16:35","перед"]
["17:35","перед",null,null,null,null,null,10,10,10,null,null,null,null,null,null,null,null,null,null,null,null,null,null,null,null,null,null,null,null,null,null,null,null,null,null,null,null,null,null,null,null,null,null,null,null,null,null,null,null,"16:50","перед",null,null,null,null,null,"Demi Star Пони","Barbie","Barbie"]
["17:50","после",null,10,null,null,null,null,null,null,null,null,null,null,null,null,null,null,null,null,null,null,null,null,null,null,null,null,null,null,null,null,null,null,null,null,null,null,null,null,null,null,null,null,null,null,null,null,null,null,"17:05","перед",null,"Demi Star Пони"]
["17:50","перед",10,null,null,10,10,10,10,10,null,null,null,null,null,null,null,null,null,null,null,null,null,null,null,null,null,null,null,null,null,null,null,null,null,null,null,null,null,null,null,null,null,null,null,null,null,null,null,null,"17:20","перед","Barbie",null,null,"Barbie","Barbie","Barbie","Barbie","Barbie"]
["18:05","перед",null,null,null,null,null,null,null,null,null,null,null,null,null,null,null,null,null,null,null,null,null,null,null,null,null,null,null,null,null,null,null,null,null,null,null,null,null,null,null,null,null,null,null,null,null,null,null,null,"17:35","перед"]
["18:20","перед",null,null,null,null,null,null,null,null,null,null,null,null,null,null,null,null,null,null,null,null,null,null,null,null,null,null,null,null,null,null,null,null,null,null,null,null,null,null,null,null,null,null,null,null,null,null,null,null,"18:20","перед"]
["18:35","перед",10,null,null,null,null,null,10,10,null,null,null,null,null,null,null,null,null,null,null,null,null,null,null,null,null,null,null,null,null,null,null,null,null,null,null,null,null,null,null,null,null,null,null,null,null,null,null,null,"18:35","перед","Demi Star Пони",null,null,null,null,null,"Pikmi Pops","Pikmi Pops"]
["18:50","перед",null,null,null,10,10,10,10,10,null,null,null,null,null,null,null,null,null,null,null,null,null,null,null,null,null,null,null,null,null,null,null,null,null,null,null,null,null,null,null,null,null,null,null,null,null,null,null,null,"18:50","перед",null,null,null,"Barbie","Barbie","Barbie","Barbie","Barbie"]
["19:05","после",10,null,10,null,null,null,null,null,null,null,null,null,null,null,null,null,null,null,null,null,null,null,null,null,null,null,null,null,null,null,null,null,null,null,null,null,null,null,null,null,null,null,null,null,null,null,null,null,"19:05","перед","Barbie",null,"Barbie"]
["19:05","перед",10,null,null,10,10,10,10,10,null,null,null,null,null,null,null,null,null,null,null,null,null,null,null,null,null,null,null,null,null,null,null,null,null,null,null,null,null,null,null,null,null,null,null,null,null,null,null,null,"19:20","перед","Pikmi Pops",null,null,"1_Disney","1_Disney","1_Disney","1_Disney","1_Disney"]
["19:20","перед",null,null,null,null,null,null,null,null,null,null,null,null,null,null,null,null,null,null,null,null,null,null,null,null,null,null,null,null,null,null,null,null,null,null,null,null,null,null,null,null,null,null,null,null,null,null,null,null,"19:35","перед"]
["19:35","перед",null,10,10,10,10,10,null,null,null,null,null,null,null,null,null,null,null,null,null,null,null,null,null,null,null,null,null,null,null,null,null,null,null,null,null,null,null,null,null,null,null,null,null,null,null,null,null,null,"20:20","перед",null,"Demi Star Пони","1_Winx","Demi Star Пони","Demi Star Пони","Demi Star Пони"]
["19:50","перед",null,10,null,10,10,10,10,10,null,null,null,null,null,null,null,null,null,null,null,null,null,null,null,null,null,null,null,null,null,null,null,null,null,null,null,null,null,null,null,null,null,null,null,null,null,null,null,null,"20:35","перед",null,null,null,"1_Demi Star Пупс","1_Demi Star Пупс","1_Demi Star Пупс","1_Demi Star Пупс","1_Demi Star Пупс"]
["20:05","перед",null,null,null,10,10,10,10,10,null,null,null,null,null,null,null,null,null,null,null,null,null,null,null,null,null,null,null,null,null,null,null,null,null,null,null,null,null,null,null,null,null,null,null,null,null,null,null,null,"20:50","перед",null,null,null,"1_Disney","1_Disney","1_Disney","1_Disney","1_Disney"]
["20:20","перед",null,10,null,null,null,null,null,null,null,null,null,null,null,null,null,null,null,null,null,null,null,null,null,null,null,null,null,null,null,null,null,null,null,null,null,null,null,null,null,null,null,null,null,null,null,null,null,null,"21:05","перед",null,"1_Disney"]
["20:20","перед",null,10,10,10,10,10,10,10,null,null,null,null,null,null,null,null,null,null,null,null,null,null,null,null,null,null,null,null,null,null,null,null,null,null,null,null,null,null,null,null,null,null,null,null,null,null,null,null,"21:20","перед",null,"1_Winx","1_Demi Star Пупс","1_Winx","1_Winx","1_Winx","1_Winx","1_Winx"]
["20:35","перед",null,10,null,null,null,null,10,10,null,null,null,null,null,null,null,null,null,null,null,null,null,null,null,null,null,null,null,null,null,null,null,null,null,null,null,null,null,null,null,null,null,null,null,null,null,null,null,null,"21:35","перед",null,"1_Winx",null,null,null,null,"1_Disney","1_Disney"]
["20:50","после",null,null,null,null,null,null,null,null,null,null,null,null,null,null,null,null,null,null,null,null,null,null,null,null,null,null,null,null,null,null,null,null,null,null,null,null,null,null,null,null,null,null,null,null,null,null,null,null,"22:20","перед"]
["20:50","перед",null,null,10,null,null,10,10,10,null,null,null,null,null,null,null,null,null,null,null,null,null,null,null,null,null,null,null,null,null,null,null,null,null,null,null,null,null,null,null,null,null,null,null,null,null,null,null,null,"22:35","перед",null,null,"1_Disney",null,null,"Demi Star Пони","1_Winx","1_Winx"]
["21:05","перед",10,10,10,10,10,10,10,10,null,null,null,null,null,null,null,null,null,null,null,null,null,null,null,null,null,null,null,null,null,null,null,null,null,null,null,null,null,null,null,null,null,null,null,null,null,null,null,null,"23:05","перед","1_Disney","1_Disney","Barbie","1_Winx","1_Winx","1_Winx","1_Wrapples","1_Wrapples"]
["21:20","перед",null,10,10,null,null,null,null,10,null,null,null,null,null,null,null,null,null,null,null,null,null,null,null,null,null,null,null,null,null,null,null,null,null,null,null,null,null,null,null,null,null,null,null,null,null,null,null,null,null,null,null,"Pikmi Pops","Barbie",null,null,null,null,"Demi Star Пони"]
["21:35","перед",10,null,null,10,null,null,null,null,null,null,null,null,null,null,null,null,null,null,null,null,null,null,null,null,null,null,null,null,null,null,null,null,null,null,null,null,null,null,null,null,null,null,null,null,null,null,null,null,null,null,"Pikmi Pops",null,null,"1_Winx"]
["21:50","перед",10,10,10,null,null,10,10,null,null,null,null,null,null,null,null,null,null,null,null,null,null,null,null,null,null,null,null,null,null,null,null,null,null,null,null,null,null,null,null,null,null,null,null,null,null,null,null,null,null,null,"1_Wrapples","1_Wrapples","1_Wrapples",null,null,"1_Wrapples","1_Wrapples",null,null,null,null,null,null,null,null,null,null,null,null,null,null,null,null,null,null,null,null,null,null,null,"Всего спотов:"]
["22:05","перед",10,10,10,10,10,null,null,null,null,null,null,null,null,null,null,null,null,null,null,null,null,null,null,null,null,null,null,null,null,null,null,null,null,null,null,null,null,null,null,null,null,null,null,null,null,null,null,null,null,null,"1_Wrapples","1_Demi Star Пупс","1_Demi Star Пупс","1_Wrapples","1_Wrapples",null,null,null,null,null,null,null,null,null,null,null,null,null,null,null,null,null,null,null,null,null,null,null,null,null,"Всего секунд:"]
["22:20","перед",null,null,null,10,null,null,null,null,null,null,null,null,null,null,null,null,null,null,null,null,null,null,null,null,null,null,null,null,null,null,null,null,null,null,null,null,null,null,null,null,null,null,null,null,null,null,null,null,null,null,null,null,null,"1_Winx"]
[null,null,{"$f":"IF(COUNT(C6:C64),COUNT(C6:C64),\"\")","v":22},23,19,19,19,23,24,22,"","","","","","","","","","","","","","","","","","","","","","",""]
[]
[null,null,null,null,null,null,null,null,null,null,null,null,null,null,null,null,null,null,null,null,null,null,null,null,null,null,null,null,null,null,null,null,"Всего спотов:",{"$f":"COUNT(C6:AG64)","v":171}]
[null,null,null,null,null,null,null,null,null,null,null,null,null,null,null,null,null,null,null,null,null,null,null,null,null,null,null,null,null,null,null,null,"Всего секунд:",{"$f":"SUM(C6:AG64)","v":1710}]